Workbook

Sheet Forside
B1: Forside
B2: - Denne model har til hensigt at illustrere prioriteringen af " Modernisering af kvægstalde 2016"
N6: For at modellen kan anvendes skal "indhold" aktiveres. Se gul boks øverst på siden ved åbning.
N7: Vejledning for brug af beregningseksempler
N9: 1. Forside
C10: Vælg Indsatsområde | J10: NyByg | O10: 1.1 Vælg først indsatsområde ved at trykke på den relevante knap
O11: 1.2 Vælg derefter om der er tale om konventionel eller
C12: Vælg økologisk / Konventionel | F12: Konventionel | G12: Økologisk | J12: Konventionel | O12: økologisk bedrift
O13: 1.3 Hvis der i ansøgningen skal ansøges til slagtekalve eller opdræt
O14: skal der i de to gule felter indtastes fordelingen imellem de to.
C15: Indtast antallet af husdyrpladser somder bygges til eller renoveres til | G15: Standardpris | H15: Total Værdi | O15: Fordelingen imellem de to skal summe til 100%
D16: Malkekøer - Født fra antallet af kopladser | F16: =IF($J$10="Renovering",Renovering!AE15,NyBygTilByg!AE15) -> 0 | G16: 5770 | H16: =G16*F16 -> 0 | O16: 1.4 Tryk derefter på næste og kom videre til næste side
B17: Fordeling af ungdyr | D17: Slagtekalve - % | F17: =IF($J$10="Renovering",Renovering!AE16,NyBygTilByg!AE16) -> 0 | G17: 450 | H17: =G17*F17 -> 0 | N17: 2. Indsatsområdet
D18: Opdræt - % | F18: =IF($J$10="Renovering",Renovering!AE17,NyBygTilByg!AE17) -> 0 | G18: 950 | H18: 0 | O18: 2.1 Antallet af de forskellige typer af ko - eller ungdyrspladser, som der søges
F19: =IF(AND(SUM(E17:E18)<>1,SUM(E17:E18)<>0),"FEJL - Fordelingen af ungdyr skal enten være 0 eller 100%","") ->  | O19: tilskud til indtastes under basisstald. Antallet af pladser udgør
C20: Gå til ansøgningsskema | F20: =IF(AND(J10<>"Renovering",F19=""),"Næste","") -> Næste | G20: =IF(AND(J10="Renovering",F19=""),"Næste","") ->  | O20: grundlaget for beregningen af økonomisk værdi. Det er kun
O21: muligt at indtaste ungdyrspladser hvis fordelingen indtastet
O22: på forsiden summerer til 100%
O23: 2.2 Udover basistald elementer, kan der søges om tilskud til teknologier
O24: under Miljø- og dyrevelfærdstilkøb og Malkning- og mælkeopbevaring
O25: Den økonomiske værdi øges mellem 0 - 5 % for den del af ansøgningen
O26: som teknologien dækker. For mere information kan kapaciteten og
O27: den økonomiske effekt for hver enkelt teknologi findes i bilag 1
O28: i vejledningen
O29: 2.3 Den faste pris, som er fastsat for hvert enkelt element, kan
O30: nedskrives for samtlige teknologier og elementer.
O31: Det gøres ved at angive en lavere pris ud for elementet .
O32: Det er vigtigt at bemærke at prisen skal inkludere samtlige af de
O33: byggeomkostninger som er listet i bilag 1 i vejledningen,
O34: også selv om prisen nedskrives.
O35: 2.4 Det er i boksen til højre muligt at se beregningerne der ligger til
O36: grund for den opnåede økonomiske effekt af projektet.
N38: 3. Begrænsninger
O39: 3.1 Det er kun muligt at tilkøbe eller renovere sygdomsbehandlingsbokse
O40: afrundet i forhold 1 til 100. Det betyder at der kan søges tilskud til 1
O41: sygdomsbehandlingsboks for hver 100 ko- eller ungdyrpladser som der søges
O42: tilskud til. Ved køb eller renovering af op til 149 pladser,
O43: rundes der ned, og der vil kunne søges om tilskud til 1 sygdomsbehandlingboks.
O44: Bygges eller renoveres 150 pladser, rundes op, og der vil kunne
O45: søges om tilskud til to sygdomsbehandlingsbokse.
O46: 3.2 Prisen for sygdomsovervågning er dynamisk, således at prisen vil være
O47: 30.000 kr. plus 1.100 kroner pr. transponder.

Sheet Renovering
E2: =IF(Forside!J10<>"Renovering","DENNE DEL KAN IKKE IKKE BRUGES NU",Forside!J10&" - "&Forside!J12) -> DENNE DEL KAN IKKE IKKE BRUGES NU
A7: Gå tilbage til forsiden
B14: Kontrol i skema | C14: Kontrol i skema | D14: Kontrol i skema | AE14: Antal kopladser | AF14: Standardpris | AG14: Total Værdi | AH14: Vægtetning af pladser
B15: Elementernes anvendelse | E15: Basis staldanlæg - Niveau 1 | AD15: Malkekøer | AE15: =SUM(H17:H20)+SUM(H32:H37)+SUM(H47:H54) -> 100 | AF15: =Forside!G16 -> 5770 | AG15: =AE15*AF15 -> 577000 | AH15: =AE15/SUM($AE$15:$AE$17) -> 1
B16: Malkekøer | C16: Slagtekalve | D16: Opdræt | E16: Kategori/element | F16: Fast Pris | G16: Enhed | H16: Angiv Stk. | I16: Enheder pr. koplads | J16: Enheder pr. Slagtekalve | K16: Enheder pr. Opdræt | M16: Procent af malkekøer dækket | N16: Procent af slagtekalve dækket | O16: Procent af opdræt dækket | P16: Malkekøer dækket | Q16: Slagtekalve dækket | R16: Opdræt dækket | S16: Værdi beregnet | T16: Lavere tilbudspris | Y16: Total Pris beregnet | Z16: Total pris | AD16: Slagtekalve | AE16: =(SUM(H21:H23)+SUM(H38:H42)+SUM(H55:H59))*Forside!E17 -> 0 | AF16: =Forside!G17 -> 450 | AG16: =AE16*AF16 -> 0 | AH16: =AE16/SUM($AE$15:$AE$17) -> 0
B17: X | E17: Sengebåse til lakterende køer | F17: 11940 | G17: Koplads | H17: 100 | I17: 1 | J17: Ikke relevant | K17: Ikke relevant | M17: =IF($AE$15=0,0,IF(IF($H17=0,0,IF(I17="Ikke Relevant",0,(($H17*$I17)*($AE$15/((IF($B17="X",$AE$15,0))+(IF($C17="X",$AE$16,0))+(IF($D17="X",$AE$17,0))))/(IF($B17="X",$AE$15,0)))))>1,1,IF($H17=0,0,IF(I17="Ikke Relevant",0,(($H17*$I17)*($AE$15/((IF($B17="X",$AE$15,0))+(IF($C17="X",$AE$16,0))+(IF($D17="X",$AE$17,0))))/(IF($B17="X",$AE$15,0))))))) -> 1 | N17: =IF($AE$16=0,0,IF(IF($H17=0,0,IF(J17="Ikke Relevant",0,(($H17*$J17)*($AE$16/((IF($B17="X",$AE$15,0))+(IF($C17="X",$AE$16,0))+(IF($D17="X",$AE$17,0))))/(IF($C17="X",$AE$16,0)))))>1,1,IF($H17=0,0,IF(J17="Ikke Relevant",0,(($H17*$J17)*($AE$16/((IF($B17="X",$AE$15,0))+(IF($C17="X",$AE$16,0))+(IF($D17="X",$AE$17,0))))/(IF($C17="X",$AE$16,0))))))) -> 0 | O17: =IF($AE$17=0,0,IF(IF($H17=0,0,IF(J17="Ikke Relevant",0,(($H17*$K17)*($AE$17/((IF($B17="X",$AE$15,0))+(IF($C17="X",$AE$16,0))+(IF($D17="X",$AE$17,0))))/(IF($D17="X",$AE$17,0)))))>1,1,IF($H17=0,0,IF(J17="Ikke Relevant",0,(($H17*$K17)*($AE$17/((IF($B17="X",$AE$15,0))+(IF($C17="X",$AE$16,0))+(IF($D17="X",$AE$17,0))))/(IF($D17="X",$AE$17,0))))))) -> 0 | P17: =IF($AE$15=0,0,M17*$AE$15) -> 100 | Q17: =IF($AE$16=0,0,N17*$AE$16) -> 0 | R17: =IF($AE$17=0,0,O17*$AE$17) -> 0 | S17: =(M17*$AG$15)+(N17*$AG$16)+(O17*$AG$17) -> 577000 | Y17: =F17*H17 -> 1194000 | Z17: =IF(OR(T17="",T17=0),Y17,T17) -> 1194000 | AD17: Opdræt | AE17: =(SUM(H21:H23)+SUM(H38:H42)+SUM(H55:H59))*Forside!E18 -> 0 | AF17: =Forside!G18 -> 950 | AG17: 0 | AH17: =AE17/SUM($AE$15:$AE$17) -> 0
B18: X | E18: Sengebåse til goldkøer | F18: 12418 | G18: Koplads | I18: 1 | J18: Ikke relevant | K18: Ikke relevant | M18: 0 | N18: 0 | O18: 0 | P18: 0 | Q18: 0 | R18: 0 | S18: 0 | Y18: 0 | Z18: =IF(OR(T18="",T18=0),Y18,T18) -> 0
B19: X | E19: Behandlingsfaciliteter – fælles (ekskl. klovbehandlingsboks) | F19: 6252 | G19: Koplads | I19: 1 | J19: Ikke relevant | K19: Ikke relevant | M19: 0 | N19: 0 | O19: 0 | P19: 0 | Q19: 0 | R19: 0 | S19: 0 | Y19: 0 | Z19: 0
B20: X | E20: Ændring af eksisterende bindestalde – køer | F20: 11940 | G20: Koplads | I20: 1 | J20: Ikke relevant | K20: Ikke relevant | M20: 0 | N20: 0 | O20: 0 | P20: 0 | Q20: 0 | R20: 0 | S20: 0 | Y20: 0 | Z20: 0
C21: X | D21: X | E21: Ændring af fuldspaltegulvbokse | F21: 7285 | G21: Ungdyrplads | I21: Ikke Relevant | J21: 1 | K21: 1 | M21: 0 | N21: 0 | O21: 0 | P21: 0 | Q21: 0 | R21: 0 | S21: 0 | Y21: 0 | Z21: 0 | AF21: Total pris for ansøgningen | AG21: Indtægt for ansøgning
C22: X | D22: X | E22: Sengebåse til ungdyr | F22: 10746 | G22: Ungdyrplads | I22: Ikke Relevant | J22: 1 | K22: 1 | M22: 0 | N22: 0 | O22: 0 | P22: 0 | Q22: 0 | R22: 0 | S22: 0 | Y22: 0 | Z22: 0
C23: X | D23: X | E23: Ændring af eksisterende bindestalde – ungdyr | F23: 10746 | G23: Ungdyrplads | I23: Ikke Relevant | J23: 1 | K23: 1 | M23: 0 | N23: 0 | O23: 0 | P23: 0 | Q23: 0 | R23: 0 | S23: 0 | Y23: 0 | Z23: 0 | AD23: Basis Staldanlæg - niveau 1 | AF23: =Z27 -> 1401400 | AG23: =S27 -> 577000
B24: X | E24: Ekstra staldkvadratmeter – Opsamlingsplads | F24: 2074 | G24: m2 | H24: 100 | I24: 0 | J24: Ikke relevant | K24: Ikke relevant | M24: 0 | N24: 0 | O24: 0 | P24: 0 | Q24: 0 | R24: 0 | S24: 0 | Y24: 207400 | Z24: =IF(OR(T24="",T24=0),Y24,T24) -> 207400 | AD24: Basis Staldanlæg - niveau 2 | AF24: =Z43 -> 0 | AG24: =S43 -> 0
B25: X | E25: Ekstra staldkvadratmeter – Malkestald | F25: 3500 | G25: m2 | I25: 0 | J25: Ikke relevant | K25: Ikke relevant | M25: 0 | N25: 0 | O25: 0 | P25: 0 | Q25: 0 | R25: 0 | S25: 0 | Y25: 0 | Z25: =IF(OR(T25="",T25=0),Y25,T25) -> 0 | AD25: Basis Staldanlæg - niveau 3 | AF25: =Z60 -> 0 | AG25: =S60 -> 0
B26: X | E26: Ekstra staldkvadratmeter – Servicerum | F26: 5000 | G26: m2 | I26: =IF(H26>=100,$AE$15,((H26*$AE$15)/100)) -> 0 | J26: Ikke relevant | K26: Ikke relevant | M26: 0 | N26: 0 | O26: 0 | P26: 0 | Q26: 0 | R26: 0 | S26: 0 | Y26: 0 | Z26: =IF(OR(T26="",T26=0),Y26,T26) -> 0 | AD26: Miljø- og dyrevelfærdstilkøb | AF26: =Z80 -> 0 | AG26: =W80+X80 -> 0
E27: Samlet pris for Basis Staldanlæg | S27: =SUM(S17:S23) -> 577000 | Z27: =SUMIF(Z17:Z26,"<>Ikke relevant",Z17:Z26) -> 1401400 | AD27: Malkning og mælkeopbevaring | AF27: =Z89 -> 0 | AG27: 0
AD28: Total | AF28: =SUM(AF23:AF27) -> 1401400 | AG28: =SUM(AG23:AG27) -> 577000
AD29: Ansøgt Beløb (20%) | AF29: =AF28/5 -> 280280
B30: Elementernes anvendelse | E30: Basis staldanlæg - Niveau 2
B31: Malkekøer | C31: Slagtekalve | D31: Opdræt | E31: Kategori/element | F31: Fast Pris | G31: Enhed | H31: Angiv Stk. | I31: Enheder pr. koplads | J31: Enheder pr. Slagtekalve | K31: Enheder pr. Opdræt | M31: Procent af malkekøer dækket | N31: Procent af slagtekalve dækket | O31: Procent af opdræt dækket | P31: Malkekøer dækket | Q31: Slagtekalve dækket | R31: Opdræt dækket | S31: Værdi beregnet | T31: Lavere tilbudspris | Y31: Total Pris beregnet | Z31: Total pris | AD31: Ansøgningens økonomiske effekt / Ansøgningens samlede score: | AF31: =AG28/AF29 -> 2.05865563
B32: X | E32: Dybstrøelsesstald, Fællesbokse til køer, minimum 8m2 pr. ko | F32: 11336 | G32: Koplads | I32: 1 | J32: Ikke relevant | K32: Ikke relevant | M32: =IF($AE$15=0,0,IF(IF($H32=0,0,IF(I32="Ikke Relevant",0,(($H32*$I32)*($AE$15/((IF($B32="X",$AE$15,0))+(IF($C32="X",$AE$16,0))+(IF($D32="X",$AE$17,0))))/(IF($B32="X",$AE$15,0)))))>1,1,IF($H32=0,0,IF(I32="Ikke Relevant",0,(($H32*$I32)*($AE$15/((IF($B32="X",$AE$15,0))+(IF($C32="X",$AE$16,0))+(IF($D32="X",$AE$17,0))))/(IF($B32="X",$AE$15,0))))))) -> 0 | N32: =IF($AE$16=0,0,IF(IF($H32=0,0,IF(J32="Ikke Relevant",0,(($H32*$J32)*($AE$16/((IF($B32="X",$AE$15,0))+(IF($C32="X",$AE$16,0))+(IF($D32="X",$AE$17,0))))/(IF($C32="X",$AE$16,0)))))>1,1,IF($H32=0,0,IF(J32="Ikke Relevant",0,(($H32*$J32)*($AE$16/((IF($B32="X",$AE$15,0))+(IF($C32="X",$AE$16,0))+(IF($D32="X",$AE$17,0))))/(IF($C32="X",$AE$16,0))))))) -> 0 | O32: =IF($AE$17=0,0,IF(IF($H32=0,0,IF(J32="Ikke Relevant",0,(($H32*$K32)*($AE$17/((IF($B32="X",$AE$15,0))+(IF($C32="X",$AE$16,0))+(IF($D32="X",$AE$17,0))))/(IF($D32="X",$AE$17,0)))))>1,1,IF($H32=0,0,IF(J32="Ikke Relevant",0,(($H32*$K32)*($AE$17/((IF($B32="X",$AE$15,0))+(IF($C32="X",$AE$16,0))+(IF($D32="X",$AE$17,0))))/(IF($D32="X",$AE$17,0))))))) -> 0 | P32: =IF($AE$15=0,0,M32*$AE$15) -> 0 | Q32: =IF($AE$16=0,0,N32*$AE$16) -> 0 | R32: =IF($AE$17=0,0,O32*$AE$17) -> 0 | S32: =(M32*$AG$15)+(N32*$AG$16)+(O32*$AG$17) -> 0 | Y32: =F32*H32 -> 0 | Z32: =IF(OR(T32="",T32=0),Y32,T32) -> 0
B33: X | E33: Fællesbokse til køer, kælving, minimum 8m2 pr. ko | F33: 11336 | G33: Koplads | I33: 1 | J33: Ikke relevant | K33: Ikke relevant | M33: 0 | N33: 0 | O33: 0 | P33: 0 | Q33: 0 | R33: 0 | S33: 0 | Y33: 0 | Z33: =IF(OR(T33="",T33=0),Y33,T33) -> 0
B34: X | E34: Enkeltbokse - kælving - min. 12 m2/ko | F34: 17004 | G34: Koplads | I34: 1 | J34: Ikke relevant | K34: Ikke relevant | M34: 0 | N34: 0 | O34: 0 | P34: 0 | Q34: 0 | R34: 0 | S34: 0 | Y34: 0 | Z34: 0
B35: X | E35: Behandlingsfaciliteter – fælles (ekskl. klovbehandlingsboks) | F35: 6252 | G35: Koplads | I35: 1 | J35: Ikke relevant | K35: Ikke relevant | M35: 0 | N35: 0 | O35: 0 | P35: 0 | Q35: 0 | R35: 0 | S35: 0 | Y35: 0 | Z35: =IF(OR(T35="",T35=0),Y35,T35) -> 0
B36: X | E36: Ændring af eksisterende bindestalde – køer | F36: 4534 | G36: Koplads | I36: 1 | J36: Ikke relevant | K36: Ikke relevant | M36: 0 | N36: 0 | O36: 0 | P36: 0 | Q36: 0 | R36: 0 | S36: 0 | Y36: 0 | Z36: =IF(OR(T36="",T36=0),Y36,T36) -> 0
B37: X | E37: Enkeltbokse -sygdomsbehandling- min. 12 m2/ko | F37: 17004 | G37: Koplads | I37: 1 | J37: Ikke relevant | K37: Ikke relevant | M37: 0 | N37: 0 | O37: 0 | P37: 0 | Q37: 0 | R37: 0 | S37: 0 | Y37: 0 | Z37: =IF(OR(T37="",T37=0),Y37,T37) -> 0
C38: X | D38: X | E38: Ændring af fuldspaltegulvbokse | F38: 4447 | G38: Ungdyrsplads | I38: Ikke Relevant | J38: 1 | K38: 1 | M38: 0 | N38: 0 | O38: 0 | P38: 0 | Q38: 0 | R38: 0 | S38: 0 | Y38: 0 | Z38: 0
C39: X | D39: X | E39: Pladser til kalve 0-3 mdr. i hytter/enkeltbokse og 3-6 mdr. i fællesbokse | F39: 7307 | G39: Ungdyrsplads | I39: Ikke Relevant | J39: 1 | K39: 1 | M39: 0 | N39: 0 | O39: 0 | P39: 0 | Q39: 0 | R39: 0 | S39: 0 | Y39: 0 | Z39: 0
C40: X | D40: X | E40: Dybstrøelsesstald - Fællesbokse til ungdyr | F40: 10202 | G40: Ungdyrsplads | I40: Ikke Relevant | J40: 1 | K40: 1 | M40: 0 | N40: 0 | O40: 0 | P40: 0 | Q40: 0 | R40: 0 | S40: 0 | Y40: 0 | Z40: =IF(OR(T40="",T40=0),Y40,T40) -> 0
C41: X | D41: X | E41: Ændring af eksisterende bindestalde – ungdyr | F41: 4080 | G41: Ungdyrsplads | I41: Ikke Relevant | J41: 1 | K41: 1 | M41: 0 | N41: 0 | O41: 0 | P41: 0 | Q41: 0 | R41: 0 | S41: 0 | Y41: 0 | Z41: 0
C42: X | D42: X | E42: Enkeltbokse - sygdomsbehandling - min. 12 m2/ungdyr | F42: 17004 | G42: Ungdyrsplads | I42: Ikke relevant | J42: 100 | K42: 100
E43: Samlet pris for Basis Staldanlæg | S43: =SUM(S32:S41) -> 0 | Z43: =SUMIF(Z32:Z42,"<>Ikke relevant",Z32:Z42) -> 0
B45: Elementernes anvendelse | E45: Basis staldanlæg - Niveau 3
B46: Malkekøer | C46: Slagtekalve | D46: Opdræt | E46: Kategori/element | F46: Fast Pris | G46: Enhed | H46: Angiv Stk. | I46: Enheder pr. koplads | J46: Enheder pr. Slagtekalve | K46: Enheder pr. Opdræt | M46: Procent af malkekøer dækket | N46: Procent af slagtekalve dækket | O46: Procent af opdræt dækket | P46: Malkekøer dækket | Q46: Slagtekalve dækket | R46: Opdræt dækket | S46: Værdi beregnet | T46: Lavere tilbudspris | Y46: Total Pris beregnet | Z46: Total pris
B47: X | E47: Sengebåse til lakterende køer | F47: 2300 | G47: Koplads | I47: 1 | J47: Ikke relevant | K47: Ikke relevant | M47: =IF($AE$15=0,0,IF(IF($H47=0,0,IF(I47="Ikke Relevant",0,(($H47*$I47)*($AE$15/((IF($B47="X",$AE$15,0))+(IF($C47="X",$AE$16,0))+(IF($D47="X",$AE$17,0))))/(IF($B47="X",$AE$15,0)))))>1,1,IF($H47=0,0,IF(I47="Ikke Relevant",0,(($H47*$I47)*($AE$15/((IF($B47="X",$AE$15,0))+(IF($C47="X",$AE$16,0))+(IF($D47="X",$AE$17,0))))/(IF($B47="X",$AE$15,0))))))) -> 0 | N47: =IF($AE$16=0,0,IF(IF($H47=0,0,IF(J47="Ikke Relevant",0,(($H47*$J47)*($AE$16/((IF($B47="X",$AE$15,0))+(IF($C47="X",$AE$16,0))+(IF($D47="X",$AE$17,0))))/(IF($C47="X",$AE$16,0)))))>1,1,IF($H47=0,0,IF(J47="Ikke Relevant",0,(($H47*$J47)*($AE$16/((IF($B47="X",$AE$15,0))+(IF($C47="X",$AE$16,0))+(IF($D47="X",$AE$17,0))))/(IF($C47="X",$AE$16,0))))))) -> 0 | O47: =IF($AE$17=0,0,IF(IF($H47=0,0,IF(J47="Ikke Relevant",0,(($H47*$K47)*($AE$17/((IF($B47="X",$AE$15,0))+(IF($C47="X",$AE$16,0))+(IF($D47="X",$AE$17,0))))/(IF($D47="X",$AE$17,0)))))>1,1,IF($H47=0,0,IF(J47="Ikke Relevant",0,(($H47*$K47)*($AE$17/((IF($B47="X",$AE$15,0))+(IF($C47="X",$AE$16,0))+(IF($D47="X",$AE$17,0))))/(IF($D47="X",$AE$17,0))))))) -> 0 | P47: =IF($AE$15=0,0,M47*$AE$15) -> 0 | Q47: =IF($AE$16=0,0,N47*$AE$16) -> 0 | R47: =IF($AE$17=0,0,O47*$AE$17) -> 0 | S47: =(M47*$AG$15)+(N47*$AG$16)+(O47*$AG$17) -> 0 | Y47: =F47*H47 -> 0 | Z47: =IF(OR(T47="",T47=0),Y47,T47) -> 0
B48: X | E48: Sengebåse til goldkøer | F48: 2400 | G48: Koplads | I48: 1 | J48: Ikke relevant | K48: Ikke relevant | M48: 0 | N48: 0 | O48: 0 | P48: 0 | Q48: 0 | R48: 0 | S48: 0 | Y48: 0 | Z48: =IF(OR(T48="",T48=0),Y48,T48) -> 0
B49: X | E49: Dybstrøelsesstald, Fællesbokse til køer, minimum 8m2 pr. ko | F49: 7856 | G49: Koplads | I49: 1 | J49: Ikke relevant | K49: Ikke relevant | M49: 0 | N49: 0 | O49: 0 | P49: 0 | Q49: 0 | R49: 0 | S49: 0 | Y49: 0 | Z49: 0
B50: X | E50: Fællesbokse til køer, kælving, minimum 8m2 pr. ko | F50: 7856 | G50: Koplads | I50: 1 | J50: Ikke relevant | K50: Ikke relevant | M50: 0 | N50: 0 | O50: 0 | P50: 0 | Q50: 0 | R50: 0 | S50: 0 | Y50: 0 | Z50: 0
B51: X | E51: Enkeltbokse - kælving - min. 12 m2/ko | F51: 11784 | G51: Koplads | I51: 1 | J51: Ikke relevant | K51: Ikke relevant | M51: 0 | N51: 0 | O51: 0 | P51: 0 | Q51: 0 | R51: 0 | S51: 0 | Y51: 0 | Z51: 0
B52: X | E52: Behandlingsfaciliteter – fælles (ekskl. klovbehandlingsboks) | F52: 5065 | G52: Koplads | I52: 1 | J52: Ikke relevant | K52: Ikke relevant | M52: 0 | N52: 0 | O52: 0 | P52: 0 | Q52: 0 | R52: 0 | S52: 0 | Y52: 0 | Z52: 0
B53: X | E53: Ændring af eksisterende bindestalde – køer | F53: 3142 | G53: Koplads | I53: 1 | J53: Ikke relevant | K53: Ikke relevant | M53: 0 | N53: 0 | O53: 0 | P53: 0 | Q53: 0 | R53: 0 | S53: 0 | Y53: 0 | Z53: 0
B54: X | E54: Enkeltbokse - sygdomsbehandling- min. 12 m2/ko | F54: 11784 | G54: Koplads | I54: 1 | J54: Ikke relevant | K54: Ikke relevant | M54: =IF($AE$15=0,0,IF(IF($H54=0,0,IF(I54="Ikke Relevant",0,(($H54*$I54)*($AE$15/((IF($B54="X",$AE$15,0))+(IF($C54="X",$AE$16,0))+(IF($D54="X",$AE$17,0))))/(IF($B54="X",$AE$15,0)))))>1,1,IF($H54=0,0,IF(I54="Ikke Relevant",0,(($H54*$I54)*($AE$15/((IF($B54="X",$AE$15,0))+(IF($C54="X",$AE$16,0))+(IF($D54="X",$AE$17,0))))/(IF($B54="X",$AE$15,0))))))) -> 0 | N54: =IF($AE$16=0,0,IF(IF($H54=0,0,IF(J54="Ikke Relevant",0,(($H54*$J54)*($AE$16/((IF($B54="X",$AE$15,0))+(IF($C54="X",$AE$16,0))+(IF($D54="X",$AE$17,0))))/(IF($C54="X",$AE$16,0)))))>1,1,IF($H54=0,0,IF(J54="Ikke Relevant",0,(($H54*$J54)*($AE$16/((IF($B54="X",$AE$15,0))+(IF($C54="X",$AE$16,0))+(IF($D54="X",$AE$17,0))))/(IF($C54="X",$AE$16,0))))))) -> 0 | O54: =IF($AE$17=0,0,IF(IF($H54=0,0,IF(J54="Ikke Relevant",0,(($H54*$K54)*($AE$17/((IF($B54="X",$AE$15,0))+(IF($C54="X",$AE$16,0))+(IF($D54="X",$AE$17,0))))/(IF($D54="X",$AE$17,0)))))>1,1,IF($H54=0,0,IF(J54="Ikke Relevant",0,(($H54*$K54)*($AE$17/((IF($B54="X",$AE$15,0))+(IF($C54="X",$AE$16,0))+(IF($D54="X",$AE$17,0))))/(IF($D54="X",$AE$17,0))))))) -> 0 | P54: =IF($AE$15=0,0,M54*$AE$15) -> 0 | Q54: =IF($AE$16=0,0,N54*$AE$16) -> 0 | R54: =IF($AE$17=0,0,O54*$AE$17) -> 0 | S54: 0 | Y54: =F54*H54 -> 0 | Z54: 0
C55: X | D55: X | E55: Sengebåse til ungdyr | F55: 2050 | G55: Ungdyrsplads | I55: Ikke relevant | J55: 1 | K55: 1 | M55: 0 | N55: =IF($AE$16=0,0,IF(IF($H55=0,0,IF(J55="Ikke Relevant",0,(($H55*$J55)*($AE$16/((IF($B55="X",$AE$15,0))+(IF($C55="X",$AE$16,0))+(IF($D55="X",$AE$17,0))))/(IF($C55="X",$AE$16,0)))))>1,1,IF($H55=0,0,IF(J55="Ikke Relevant",0,(($H55*$J55)*($AE$16/((IF($B55="X",$AE$15,0))+(IF($C55="X",$AE$16,0))+(IF($D55="X",$AE$17,0))))/(IF($C55="X",$AE$16,0))))))) -> 0 | O55: =IF($AE$17=0,0,IF(IF($H55=0,0,IF(J55="Ikke Relevant",0,(($H55*$K55)*($AE$17/((IF($B55="X",$AE$15,0))+(IF($C55="X",$AE$16,0))+(IF($D55="X",$AE$17,0))))/(IF($D55="X",$AE$17,0)))))>1,1,IF($H55=0,0,IF(J55="Ikke Relevant",0,(($H55*$K55)*($AE$17/((IF($B55="X",$AE$15,0))+(IF($C55="X",$AE$16,0))+(IF($D55="X",$AE$17,0))))/(IF($D55="X",$AE$17,0))))))) -> 0 | P55: =IF($AE$15=0,0,M55*$AE$15) -> 0 | Q55: =IF($AE$16=0,0,N55*$AE$16) -> 0 | R55: =IF($AE$17=0,0,O55*$AE$17) -> 0 | S55: 0 | Y55: =F55*H55 -> 0 | Z55: 0
C56: X | D56: X | E56: Pladser til kalve 0-3 mdr. i hytter/enkeltbokse og 3-6 mdr. i fællesbokse | F56: 3383 | G56: Ungdyrsplads | I56: Ikke relevant | J56: 1 | K56: 1 | M56: 0 | N56: 0 | O56: 0 | P56: 0 | Q56: 0 | R56: 0 | S56: 0 | Y56: 0 | Z56: 0
C57: X | D57: X | E57: Dybstrøelsesstald - Fællesbokse til ungdyr | F57: 7559 | G57: Ungdyrsplads | I57: Ikke relevant | J57: 1 | K57: 1 | M57: 0 | N57: 0 | O57: 0 | P57: 0 | Q57: 0 | R57: 0 | S57: 0 | Y57: 0 | Z57: 0
C58: X | D58: X | E58: Ændring af eksisterende bindestalde – ungdyr | F58: 2828 | G58: Ungdyrsplads | I58: Ikke relevant | J58: 1 | K58: 1 | M58: 0 | N58: 0 | O58: 0 | P58: 0 | Q58: 0 | R58: 0 | S58: 0 | Y58: 0 | Z58: 0
C59: X | D59: X | E59: Enkeltbokse - sygdomsbehandling - min. 12 m2/ungdyr | F59: 11784 | G59: Ungdyrsplads | I59: Ikke relevant | J59: 1 | K59: 1
E60: Samlet pris for Basis Staldanlæg | S60: =SUM(S47:S58) -> 0 | Z60: =SUMIF(Z47:Z59,"<>Ikke relevant",Z47:Z59) -> 0
B63: Elementernes anvendelse | E63: Miljø- og dyrevelfærdstilkøb
B64: Malkekøer | C64: Slagtekalve | D64: Opdræt | E64: Kategori/element | F64: Fast Pris | G64: Enhed | H64: Angiv Stk. | I64: Enheder pr. koplads | J64: Enheder pr. Slagtekalve | K64: Enheder pr. Opdræt | L64: 100% opnåelse | M64: Procent af malkekøer dækket | N64: Procent af slagtekalve dækket | O64: Procent af opdræt dækket | P64: Malkekøer dækket | Q64: Slagtekalve dækket | R64: Opdræt dækket | S64: Værdi beregnet | T64: Lavere tilbudspris | U64: Forøgelse i produktion Køer | V64: Forøgelse i produktion ungdyr | W64: Forøget værdi Køer(Forøgelse * Værdi) | X64: Forøget værdi ungdyr(Forøgelse * Værdi) | Y64: Total Pris beregnet | Z64: Total pris
B65: X | C65: X | D65: X | E65: Forsuringsanlæg | F65: 700000 | G65: Stk. | I65: 450 | J65: 2200 | K65: 1250 | L65: =IFERROR($AE$15/I65,0)+IFERROR($AE$16/J65,0)+IFERROR($AE$17/K65,0) -> 0.2222222222 | M65: =IF(L65=0,0,IF((H65/L65)>1,1,(H65/L65))) -> 0 | N65: =IF(L65=0,0,IF((H65/L65)>1,1,(H65/L65))) -> 0 | O65: =IF(L65=0,0,IF((H65/L65)>1,1,(H65/L65))) -> 0 | P65: =IF($AE$15=0,0,M65*$AE$15) -> 0 | Q65: =IF($AE$16=0,0,N65*$AE$16) -> 0 | R65: =IF($AE$17=0,0,O65*$AE$17) -> 0 | S65: 0 | U65: 0.05 | V65: 0.05 | W65: =IF(OR(H65=0,H65=""),0,U65*SUM($AG$15)*M65) -> 0 | X65: =IF(OR(H65=0,H65=""),0,(V65*SUM($AG$16)*N65)+(V65*SUM($AG$17)*O65)) -> 0 | Y65: =F65*H65 -> 0 | Z65: =IF(OR(T65="",T65=0),Y65,T65) -> 0
B66: X | D66: X | E66: Sandvasker | F66: 1100000 | G66: Stk. | I66: =SUM(AE15) -> 100 | J66: Ikke relevant | K66: 1000 | L66: =IFERROR($AE$15/I66,0)+IFERROR($AE$16/J66,0)+IFERROR($AE$17/K66,0) -> 1 | M66: =IF(L66=0,0,IF((H66/L66)>1,1,(H66/L66))) -> 0 | N66: =IF(L66=0,0,IF((H66/L66)>1,1,(H66/L66))) -> 0 | O66: =IF(L66=0,0,IF((H66/L66)>1,1,(H66/L66))) -> 0 | P66: 0 | Q66: 0 | R66: 0 | S66: 0 | U66: 0.05 | V66: 0.05 | W66: 0 | X66: 0 | Y66: 0 | Z66: =IF(OR(T66="",T66=0),Y66,T66) -> 0
B67: X | C67: X | D67: X | E67: Ensilagesiloer – 22 m3 pr. ko og 13 m3 pr. kvie | F67: 275 | G67: m3 | I67: =1/22 -> 0.04545454545 | J67: =1/3.5 -> 0.2857142857 | K67: =1/13 -> 0.07692307692 | L67: =IFERROR($AE$15/I67,0)+IFERROR($AE$16/J67,0)+IFERROR($AE$17/K67,0) -> 2200 | M67: 0 | N67: 0 | O67: 0 | P67: 0 | Q67: 0 | R67: 0 | S67: 0 | U67: 0.05 | V67: 0.05 | W67: 0 | X67: 0 | Y67: 0 | Z67: 0
B68: X | C68: X | D68: X | E68: Gyllebeholder | F68: 140 | G68: m3 | I68: =1/23 -> 0.04347826087 | J68: 0.2 | K68: 0.2 | L68: 2300 | M68: 0 | N68: 0 | O68: 0 | P68: 0 | Q68: 0 | R68: 0 | S68: 0 | U68: 0 | V68: 0 | W68: 0 | X68: 0 | Y68: 0 | Z68: 0
B69: X | C69: X | D69: X | E69: Teltoverdækning af gyllebeholder | F69: 320 | G69: m2 | I69: 0.2 | J69: =1/1.1 -> 0.9090909091 | K69: =1/1.1 -> 0.9090909091 | L69: 500 | M69: 0 | N69: 0 | O69: 0 | P69: 0 | Q69: 0 | R69: 0 | S69: 0 | U69: 0.05 | V69: 0.05 | W69: 0 | X69: 0 | Y69: 0 | Z69: 0
B70: X | C70: X | D70: X | E70: Luftrensning | F70: 3500 | G70: Ko | I70: 1 | J70: 1.25 | K70: 1.25 | L70: 100 | M70: 0 | N70: 0 | O70: 0 | P70: 0 | Q70: 0 | R70: 0 | S70: 0 | U70: 0.02 | V70: 0.02 | W70: 0 | X70: 0 | Y70: 0 | Z70: 0
B71: X | C71: X | D71: X | E71: Gulvudsugning: | F71: 2365 | G71: Ko | I71: 1 | J71: 1.25 | K71: 1.25 | L71: 100 | M71: 0 | N71: 0 | O71: 0 | P71: 0 | Q71: 0 | R71: 0 | S71: 0 | U71: 0.02 | V71: 0.02 | W71: 0 | X71: 0 | Y71: 0 | Z71: 0
B72: X | C72: X | D72: X | E72: Isolering af tag: | F72: 175 | G72: m2 | I72: =1/11 -> 0.09090909091 | J72: =1/9 -> 0.1111111111 | K72: =1/9 -> 0.1111111111 | L72: 1100 | M72: 0 | N72: 0 | O72: 0 | P72: 0 | Q72: 0 | R72: 0 | S72: 0 | U72: 0.02 | V72: 0.02 | W72: 0 | X72: 0 | Y72: 0 | Z72: 0
B73: X | E73: Klovvasker - Returgangsanlæg | F73: 80000 | G73: Stk. | I73: =AE15 -> 100 | J73: Ikke relevant | K73: Ikke relevant | L73: 1 | M73: 0 | N73: 0 | O73: 0 | P73: 0 | Q73: 0 | R73: 0 | S73: 0 | U73: 0 | V73: 0 | W73: 0 | X73: 0 | Y73: 0 | Z73: 0
B74: X | E74: Klovvasker - Montage i malkerobot | F74: 20000 | G74: Stk. | I74: 75 | J74: Ikke relevant | K74: Ikke relevant | L74: 1.333333333 | M74: 0 | N74: 0 | O74: 0 | P74: 0 | Q74: 0 | R74: 0 | S74: 0 | U74: 0 | V74: 0 | W74: 0 | X74: 0 | Y74: 0 | Z74: 0
B75: X | C75: X | D75: X | E75: Vandrensning - Kapacitet under 7.500 Liter | F75: 60000 | G75: Stk. | I75: 150 | J75: 600 | K75: 600 | L75: 0.6666666667 | M75: 0 | N75: 0 | O75: 0 | P75: 0 | Q75: 0 | R75: 0 | S75: 0 | U75: 0.025 | V75: 0.025 | W75: 0 | X75: 0 | Y75: 0 | Z75: 0
B76: X | C76: X | D76: X | E76: Vandrensning - Kapacitet 7500-15.000 Liter | F76: 100000 | G76: Stk. | I76: 300 | J76: 1200 | K76: 1200 | L76: 0.3333333333 | M76: 0 | N76: 0 | O76: 0 | P76: 0 | Q76: 0 | R76: 0 | S76: 0 | U76: 0.025 | V76: 0.025 | W76: 0 | X76: 0 | Y76: 0 | Z76: 0
B77: X | C77: X | D77: X | E77: Vandrensning - Kapacitet over 15.000 Liter | F77: 180000 | G77: Stk. | I77: =AE15 -> 100 | J77: =AE16 -> 0 | K77: =AE17 -> 0 | L77: 1 | M77: 0 | N77: 0 | O77: 0 | P77: 0 | Q77: 0 | R77: 0 | S77: 0 | U77: 0.025 | V77: 0.025 | W77: 0 | X77: 0 | Y77: 0 | Z77: 0
B78: X | E78: Sygdomsovervågning (30.000 i grundpris+1100 pr ko) | F78: =30000+(1100*H78) -> 30000 | G78: Stk. | I78: 1 | J78: Ikke relevant | K78: Ikke relevant | L78: 100 | M78: 0 | N78: 0 | O78: 0 | P78: 0 | Q78: 0 | R78: 0 | S78: 0 | U78: 0.025 | V78: 0 | W78: 0 | X78: 0 | Y78: =IF(OR(H78=0,H78=""),0,F78) -> 0 | Z78: 0
B79: X | E79: Rengøring af gulve – Drivbom på opsamlingsplads | F79: 175000 | G79: Stk. | I79: =AE15 -> 100 | J79: Ikke relevant | K79: Ikke relevant | L79: 1 | M79: 0 | N79: 0 | O79: 0 | P79: 0 | Q79: 0 | R79: 0 | S79: 0 | U79: 0.025 | V79: 0 | W79: 0 | X79: 0 | Y79: =F79*H79 -> 0 | Z79: =IF(OR(T79="",T79=0),Y79,T79) -> 0
E80: Samlet pris for Basis Staldanlæg | S80: =SUM(S65:S79) -> 0 | U80: =SUMIF(R65:R79,">0",U65:U79) -> 0 | V80: =SUMIF(R65:R79,">0",V65:V79) -> 0 | W80: =SUM(W65:W79) -> 0 | X80: =SUM(X65:X79) -> 0 | Y80: =SUM(Y65:Y79) -> 0 | Z80: =SUMIF(Z65:Z79,"<>Ikke relevant",Z65:Z79) -> 0
B82: Elementernes anvendelse | E82: Malkning og mælkeopbevaring
B83: Malkekøer | C83: Slagtekalve | D83: Opdræt | E83: Kategori/element | F83: Fast Pris | G83: Enhed | H83: Angiv Stk. | I83: Enheder pr. koplads | J83: Enheder pr. Slagtekalve | K83: Enheder pr. Opdræt | M83: Procent af malkekøer dækket | N83: Procent af slagtekalve dækket | O83: Procent af opdræt dækket | P83: Malkekøer dækket | Q83: Slagtekalve dækket | R83: Opdræt dækket | S83: Værdi beregnet | T83: Lavere tilbudspris | U83: Forøgelse i produktion Køer | V83: Forøgelse i produktion ungdyr | W83: Forøget værdi Køer(Forøgelse * Værdi) | X83: Forøget værdi ungdyr(Forøgelse * Værdi) | Y83: Total Pris beregnet | Z83: Total pris
B84: X | E84: Konventionelt malkeanlæg med fast exit, hhv. 30° sildeben eller ”side by side” | F84: 75000 | G84: Koplads | I84: 7.5 | J84: Ikke relevant | K84: Ikke relevant | M84: =IF($AE$15=0,0,IF(IF($H84=0,0,IF(I84="Ikke Relevant",0,(($H84*$I84)*($AE$15/((IF($B84="X",$AE$15,0))+(IF($C84="X",$AE$16,0))+(IF($D84="X",$AE$17,0))))/(IF($B84="X",$AE$15,0)))))>1,1,IF($H84=0,0,IF(I84="Ikke Relevant",0,(($H84*$I84)*($AE$15/((IF($B84="X",$AE$15,0))+(IF($C84="X",$AE$16,0))+(IF($D84="X",$AE$17,0))))/(IF($B84="X",$AE$15,0))))))) -> 0 | N84: =IF($AE$16=0,0,IF(IF($H84=0,0,IF(J84="Ikke Relevant",0,(($H84*$J84)*($AE$16/((IF($B84="X",$AE$15,0))+(IF($C84="X",$AE$16,0))+(IF($D84="X",$AE$17,0))))/(IF($C84="X",$AE$16,0)))))>1,1,IF($H84=0,0,IF(J84="Ikke Relevant",0,(($H84*$J84)*($AE$16/((IF($B84="X",$AE$15,0))+(IF($C84="X",$AE$16,0))+(IF($D84="X",$AE$17,0))))/(IF($C84="X",$AE$16,0))))))) -> 0 | O84: =IF($AE$17=0,0,IF(IF($H84=0,0,IF(J84="Ikke Relevant",0,(($H84*$K84)*($AE$17/((IF($B84="X",$AE$15,0))+(IF($C84="X",$AE$16,0))+(IF($D84="X",$AE$17,0))))/(IF($D84="X",$AE$17,0)))))>1,1,IF($H84=0,0,IF(J84="Ikke Relevant",0,(($H84*$K84)*($AE$17/((IF($B84="X",$AE$15,0))+(IF($C84="X",$AE$16,0))+(IF($D84="X",$AE$17,0))))/(IF($D84="X",$AE$17,0))))))) -> 0 | P84: =IF($AE$15=0,0,M84*$AE$15) -> 0 | Q84: =IF($AE$16=0,0,N84*$AE$16) -> 0 | R84: =IF($AE$17=0,0,O84*$AE$17) -> 0 | S84: 0 | U84: 0 | V84: 0 | W84: 0 | X84: 0 | Y84: =F84*H84 -> 0 | Z84: =IF(OR(T84="",T84=0),Y84,T84) -> 0
B85: X | E85: Mælkekøling, isvandsanlæg | F85: 1100 | G85: Ko | I85: 1 | J85: Ikke relevant | K85: Ikke relevant | M85: =IF($AE$15=0,0,IF(IF($H85=0,0,IF(I85="Ikke Relevant",0,(($H85*$I85)*($AE$15/((IF($B85="X",$AE$15,0))+(IF($C85="X",$AE$16,0))+(IF($D85="X",$AE$17,0))))/(IF($B85="X",$AE$15,0)))))>1,1,IF($H85=0,0,IF(I85="Ikke Relevant",0,(($H85*$I85)*($AE$15/((IF($B85="X",$AE$15,0))+(IF($C85="X",$AE$16,0))+(IF($D85="X",$AE$17,0))))/(IF($B85="X",$AE$15,0))))))) -> 0 | N85: =IF($AE$16=0,0,IF(IF($H85=0,0,IF(J85="Ikke Relevant",0,(($H85*$J85)*($AE$16/((IF($B85="X",$AE$15,0))+(IF($C85="X",$AE$16,0))+(IF($D85="X",$AE$17,0))))/(IF($C85="X",$AE$16,0)))))>1,1,IF($H85=0,0,IF(J85="Ikke Relevant",0,(($H85*$J85)*($AE$16/((IF($B85="X",$AE$15,0))+(IF($C85="X",$AE$16,0))+(IF($D85="X",$AE$17,0))))/(IF($C85="X",$AE$16,0))))))) -> 0 | O85: =IF($AE$17=0,0,IF(IF($H85=0,0,IF(J85="Ikke Relevant",0,(($H85*$K85)*($AE$17/((IF($B85="X",$AE$15,0))+(IF($C85="X",$AE$16,0))+(IF($D85="X",$AE$17,0))))/(IF($D85="X",$AE$17,0)))))>1,1,IF($H85=0,0,IF(J85="Ikke Relevant",0,(($H85*$K85)*($AE$17/((IF($B85="X",$AE$15,0))+(IF($C85="X",$AE$16,0))+(IF($D85="X",$AE$17,0))))/(IF($D85="X",$AE$17,0))))))) -> 0 | P85: =IF($AE$15=0,0,M85*$AE$15) -> 0 | Q85: =IF($AE$16=0,0,N85*$AE$16) -> 0 | R85: =IF($AE$17=0,0,O85*$AE$17) -> 0 | S85: 0 | U85: 0 | V85: 0 | W85: 0 | X85: 0 | Y85: =F85*H85 -> 0 | Z85: =IF(OR(T85="",T85=0),Y85,T85) -> 0
B86: X | E86: Mælketank inkl. bufferkapacitet på 25 % | F86: 1800 | G86: Ko | I86: 1 | J86: Ikke relevant | K86: Ikke relevant | M86: =IF($AE$15=0,0,IF(IF($H86=0,0,IF(I86="Ikke Relevant",0,(($H86*$I86)*($AE$15/((IF($B86="X",$AE$15,0))+(IF($C86="X",$AE$16,0))+(IF($D86="X",$AE$17,0))))/(IF($B86="X",$AE$15,0)))))>1,1,IF($H86=0,0,IF(I86="Ikke Relevant",0,(($H86*$I86)*($AE$15/((IF($B86="X",$AE$15,0))+(IF($C86="X",$AE$16,0))+(IF($D86="X",$AE$17,0))))/(IF($B86="X",$AE$15,0))))))) -> 0 | N86: =IF($AE$16=0,0,IF(IF($H86=0,0,IF(J86="Ikke Relevant",0,(($H86*$J86)*($AE$16/((IF($B86="X",$AE$15,0))+(IF($C86="X",$AE$16,0))+(IF($D86="X",$AE$17,0))))/(IF($C86="X",$AE$16,0)))))>1,1,IF($H86=0,0,IF(J86="Ikke Relevant",0,(($H86*$J86)*($AE$16/((IF($B86="X",$AE$15,0))+(IF($C86="X",$AE$16,0))+(IF($D86="X",$AE$17,0))))/(IF($C86="X",$AE$16,0))))))) -> 0 | O86: =IF($AE$17=0,0,IF(IF($H86=0,0,IF(J86="Ikke Relevant",0,(($H86*$K86)*($AE$17/((IF($B86="X",$AE$15,0))+(IF($C86="X",$AE$16,0))+(IF($D86="X",$AE$17,0))))/(IF($D86="X",$AE$17,0)))))>1,1,IF($H86=0,0,IF(J86="Ikke Relevant",0,(($H86*$K86)*($AE$17/((IF($B86="X",$AE$15,0))+(IF($C86="X",$AE$16,0))+(IF($D86="X",$AE$17,0))))/(IF($D86="X",$AE$17,0))))))) -> 0 | P86: =IF($AE$15=0,0,M86*$AE$15) -> 0 | Q86: =IF($AE$16=0,0,N86*$AE$16) -> 0 | R86: =IF($AE$17=0,0,O86*$AE$17) -> 0 | S86: 0 | U86: 0 | V86: 0 | W86: 0 | X86: 0 | Y86: =F86*H86 -> 0 | Z86: 0
B87: X | E87: Malkekarrusel | F87: 68000 | G87: Ko | I87: 1 | J87: Ikke relevant | K87: Ikke relevant | M87: =IF($AE$15=0,0,IF(IF($H87=0,0,IF(I87="Ikke Relevant",0,(($H87*$I87)*($AE$15/((IF($B87="X",$AE$15,0))+(IF($C87="X",$AE$16,0))+(IF($D87="X",$AE$17,0))))/(IF($B87="X",$AE$15,0)))))>1,1,IF($H87=0,0,IF(I87="Ikke Relevant",0,(($H87*$I87)*($AE$15/((IF($B87="X",$AE$15,0))+(IF($C87="X",$AE$16,0))+(IF($D87="X",$AE$17,0))))/(IF($B87="X",$AE$15,0))))))) -> 0 | N87: =IF($AE$16=0,0,IF(IF($H87=0,0,IF(J87="Ikke Relevant",0,(($H87*$J87)*($AE$16/((IF($B87="X",$AE$15,0))+(IF($C87="X",$AE$16,0))+(IF($D87="X",$AE$17,0))))/(IF($C87="X",$AE$16,0)))))>1,1,IF($H87=0,0,IF(J87="Ikke Relevant",0,(($H87*$J87)*($AE$16/((IF($B87="X",$AE$15,0))+(IF($C87="X",$AE$16,0))+(IF($D87="X",$AE$17,0))))/(IF($C87="X",$AE$16,0))))))) -> 0 | O87: =IF($AE$17=0,0,IF(IF($H87=0,0,IF(J87="Ikke Relevant",0,(($H87*$K87)*($AE$17/((IF($B87="X",$AE$15,0))+(IF($C87="X",$AE$16,0))+(IF($D87="X",$AE$17,0))))/(IF($D87="X",$AE$17,0)))))>1,1,IF($H87=0,0,IF(J87="Ikke Relevant",0,(($H87*$K87)*($AE$17/((IF($B87="X",$AE$15,0))+(IF($C87="X",$AE$16,0))+(IF($D87="X",$AE$17,0))))/(IF($D87="X",$AE$17,0))))))) -> 0 | P87: =IF($AE$15=0,0,M87*$AE$15) -> 0 | Q87: =IF($AE$16=0,0,N87*$AE$16) -> 0 | R87: =IF($AE$17=0,0,O87*$AE$17) -> 0 | S87: 0 | U87: 0 | V87: 0 | W87: 0 | X87: 0 | Y87: =F87*H87 -> 0 | Z87: =IF(OR(T87="",T87=0),Y87,T87) -> 0
B88: X | E88: Malkerobot | F88: 1000000 | G88: Stk. | I88: 75 | J88: Ikke relevant | K88: Ikke relevant | M88: =IF($AE$15=0,0,IF(IF($H88=0,0,IF(I88="Ikke Relevant",0,(($H88*$I88)*($AE$15/((IF($B88="X",$AE$15,0))+(IF($C88="X",$AE$16,0))+(IF($D88="X",$AE$17,0))))/(IF($B88="X",$AE$15,0)))))>1,1,IF($H88=0,0,IF(I88="Ikke Relevant",0,(($H88*$I88)*($AE$15/((IF($B88="X",$AE$15,0))+(IF($C88="X",$AE$16,0))+(IF($D88="X",$AE$17,0))))/(IF($B88="X",$AE$15,0))))))) -> 0 | N88: =IF($AE$16=0,0,IF(IF($H88=0,0,IF(J88="Ikke Relevant",0,(($H88*$J88)*($AE$16/((IF($B88="X",$AE$15,0))+(IF($C88="X",$AE$16,0))+(IF($D88="X",$AE$17,0))))/(IF($C88="X",$AE$16,0)))))>1,1,IF($H88=0,0,IF(J88="Ikke Relevant",0,(($H88*$J88)*($AE$16/((IF($B88="X",$AE$15,0))+(IF($C88="X",$AE$16,0))+(IF($D88="X",$AE$17,0))))/(IF($C88="X",$AE$16,0))))))) -> 0 | O88: =IF($AE$17=0,0,IF(IF($H88=0,0,IF(J88="Ikke Relevant",0,(($H88*$K88)*($AE$17/((IF($B88="X",$AE$15,0))+(IF($C88="X",$AE$16,0))+(IF($D88="X",$AE$17,0))))/(IF($D88="X",$AE$17,0)))))>1,1,IF($H88=0,0,IF(J88="Ikke Relevant",0,(($H88*$K88)*($AE$17/((IF($B88="X",$AE$15,0))+(IF($C88="X",$AE$16,0))+(IF($D88="X",$AE$17,0))))/(IF($D88="X",$AE$17,0))))))) -> 0 | P88: =IF($AE$15=0,0,M88*$AE$15) -> 0 | Q88: =IF($AE$16=0,0,N88*$AE$16) -> 0 | R88: =IF($AE$17=0,0,O88*$AE$17) -> 0 | S88: 0 | U88: 0 | V88: 0 | W88: 0 | X88: 0 | Y88: =F88*H88 -> 0 | Z88: 0
E89: Samlet pris for Basis Staldanlæg | S89: =SUM(S84:S88) -> 0 | U89: =SUM(U84:U88) -> 0 | V89: 0 | W89: =SUM(W84:W88) -> 0 | X89: =SUM(X84:X88) -> 0 | Z89: =SUMIF(Z84:Z88,"<>Ikke relevant",Z84:Z88) -> 0

Sheet NyBygTilByg
E1: =IF(Forside!J10="Renovering","DENNE DEL KAN IKKE IKKE BRUGES NU",Forside!J10&" - "&Forside!J12) -> NyByg - Konventionel
A3: Gå tilbage til forsiden
E5: Basis staldanlæg
E6: Kategori/element | F6: Pris | G6: Enhed | H6: Angiv Stk. | S6: Total Pris | T6: Angiv lavere pris | Y6: Endelig pris til prioritering
E7: Sengebåse til lakterende køer | F7: 20035 | G7: =VLOOKUP(E7,Renovering!E:G,3,0) -> Koplads | S7: =IF(F7="Ikke Relevant","Ikke Relevant",F7*H7) -> 0 | Y7: =IF(AND(T7<S7,T7<>0,T7<>""),T7,S7) -> 0
E8: Sengebåse til goldkøer | F8: 20836 | G8: =VLOOKUP(E8,Renovering!E:G,3,0) -> Koplads | S8: 0 | Y8: =IF(AND(T8<S8,T8<>0,T8<>""),T8,S8) -> 0
E9: Dybstrøelsesstald, Fællesbokse til køer, minimum 8m2 pr. ko | F9: 20600 | G9: =VLOOKUP(E9,Renovering!E:G,3,0) -> Koplads | S9: 0 | Y9: 0
E10: Fællesbokse til køer, kælving, minimum 8m2 pr. ko | F10: 20600 | G10: =VLOOKUP(E10,Renovering!E:G,3,0) -> Koplads | S10: 0 | Y10: 0
E11: Enkeltbokse - kælving - min. 12 m2/ko | F11: 30900 | G11: =VLOOKUP(E11,Renovering!E:G,3,0) -> Koplads | S11: 0 | Y11: 0
E12: Behandlingsfaciliteter – fælles (ekskl. klovbehandlingsboks) | F12: 11955 | G12: =VLOOKUP(E12,Renovering!E:G,3,0) -> Koplads | S12: =IF(F12="Ikke Relevant","Ikke Relevant",F12*H12) -> 0 | Y12: =IF(AND(T12<S12,T12<>0,T12<>""),T12,S12) -> 0
E13: Enkeltbokse -sygdomsbehandling- min. 12 m2/ko | F13: 30900 | G13: =VLOOKUP(E13,Renovering!E:G,3,0) -> Koplads | S13: =IF(F13="Ikke Relevant","Ikke Relevant",F13*H13) -> 0 | Y13: =IF(AND(T13<S13,T13<>0,T13<>""),T13,S13) -> 0
E14: Pladser til kalve 0-3 mdr. i hytter/enkeltbokse og 3-6 mdr. i fællesbokse | F14: 13285 | G14: =VLOOKUP(E14,Renovering!E:G,3,0) -> Ungdyrsplads | S14: =IF(F14="Ikke Relevant","Ikke Relevant",F14*H14) -> 0 | Y14: =IF(AND(T14<S14,T14<>0,T14<>""),T14,S14) -> 0 | AE14: Antal kopladser | AF14: Standardpris | AG14: ½
E15: Sengebåse til ungdyr | F15: 18032 | G15: =VLOOKUP(E15,Renovering!E:G,3,0) -> Ungdyrplads | S15: =IF(F15="Ikke Relevant","Ikke Relevant",F15*H15) -> 0 | Y15: =IF(AND(T15<S15,T15<>0,T15<>""),T15,S15) -> 0 | AD15: Malkekøer | AE15: =SUM(H7:H13) -> 0 | AF15: =Forside!G16 -> 5770 | AG15: =AE15*AF15 -> 0
E16: Dybstrøelsesstald - Fællesbokse til ungdyr | F16: 15000 | G16: =VLOOKUP(E16,Renovering!E:G,3,0) -> Ungdyrsplads | S16: =IF(F16="Ikke Relevant","Ikke Relevant",F16*H16) -> 0 | Y16: =IF(AND(T16<S16,T16<>0,T16<>""),T16,S16) -> 0 | AD16: Slagtekalve | AE16: =SUM(H14:H17)*Forside!E17 -> 0 | AF16: =Forside!G17 -> 450 | AG16: =AE16*AF16 -> 0
E17: Enkeltbokse - sygdomsbehandling - min. 12 m2/ungdyr | F17: 30900 | G17: =VLOOKUP(E17,Renovering!E:G,3,0) -> Ungdyrsplads | S17: 0 | Y17: 0 | AD17: Opdræt | AE17: =SUM(H14:H17)*Forside!E18 -> 0 | AF17: =Forside!G18 -> 950 | AG17: 0
E18: Ekstra staldkvadratmeter – Opsamlingsplads | F18: 2100 | G18: =VLOOKUP(E18,Renovering!E:G,3,0) -> m2 | S18: 0 | Y18: 0
E19: Ekstra staldkvadratmeter – Malkestald | F19: 3500 | G19: =VLOOKUP(E19,Renovering!E:G,3,0) -> m2 | S19: 0 | Y19: 0
E20: Ekstra staldkvadratmeter – Servicerum | F20: 5000 | G20: =VLOOKUP(E20,Renovering!E:G,3,0) -> m2 | S20: 0 | Y20: 0
E21: Samlet pris for Basis Staldanlæg | Y21: =SUMIF(Y7:Y20,"<>Ikke relevant",Y7:Y20) -> 0 | AD21: Total pris for ansøgningen
AG22: Værdier
AD23: Basis Staldanlæg | AF23: =Y21 -> 0 | AG23: Standardværdi | AH23: =SUM(AG15:AG17) -> 0
AD24: Miljø- og dyrevelfærdstilkøb | AF24: =Y42 -> 0 | AG24: Tilkøb køer | AH24: =W42 -> 0
B25: Elementernes anvendelse | E25: Miljø- og dyrevelfærdstilkøb | AD25: Malkning og mælkeopbevaring | AF25: =Y51 -> 0 | AG25: Tilkøb ungdyr | AH25: =X42 -> 0
B26: Malkekøer | C26: Slagtekalve | D26: Opdræt | E26: Kategori/element | F26: Pris | G26: Enhed | H26: Angiv Stk. | I26: Enheder pr. koplads | J26: Enheder pr. Slagtekalve | K26: Enheder pr. Opdræt | L26: 100 Opnåelse | M26: Procent af malkekøer dækket | N26: Procent af slagtekalve dækket | O26: Procent af opdræt dækket | P26: Malkekøer dækket | Q26: Slagtekalve dækket | R26: Opdræt dækket | S26: Total Pris | T26: Angiv lavere pris | U26: Forøgelse i produktion Køer | V26: Forøgelse i produktion ungdyr | W26: Forøget værdi Køer(Forøgelse * Værdi) | X26: Forøget værdi ungdyr(Forøgelse * Værdi) | Y26: Endelig pris til prioritering | AD26: Samlet Pris | AF26: =SUM(AF23:AF25) -> 0 | AG26: Total | AH26: =SUM(AH23:AH25) -> 0
B27: X | C27: X | D27: X | E27: Forsuringsanlæg | F27: 700000 | G27: =VLOOKUP(E27,Renovering!E:G,3,0) -> Stk. | I27: 450 | J27: 2200 | K27: 1250 | L27: =IFERROR($AE$15/I27,0)+IFERROR($AE$16/J27,0)+IFERROR($AE$17/K27,0) -> 0 | M27: =IF(L27=0,0,IF((H27/L27)>1,1,(H27/L27))) -> 0 | N27: =IF(L27=0,0,IF((H27/L27)>1,1,(H27/L27))) -> 0 | O27: =IF(L27=0,0,IF((H27/L27)>1,1,(H27/L27))) -> 0 | P27: =IF($AE$15=0,0,M27*$AE$15) -> 0 | Q27: =IF($AE$16=0,0,N27*$AE$16) -> 0 | R27: =IF($AE$17=0,0,O27*$AE$17) -> 0 | S27: =IF(F27="Ikke Relevant","Ikke Relevant",F27*H27) -> 0 | U27: 0.05 | V27: 0.05 | W27: =IF(OR(H27=0,H27=""),0,U27*SUM($AG$15)*M27) -> 0 | X27: =IF(OR(S27=0,S27=""),0,V27*SUM($AG$16)*N27+V27*SUM($AG$17)*O27) -> 0 | Y27: =IF(AND(T27<S27,T27<>0,T27<>""),T27,S27) -> 0 | AD27: Ansøgt Beløb (20%) | AF27: =AF26/5 -> 0
B28: X | D28: X | E28: Sandvasker | F28: 1100000 | G28: =VLOOKUP(E28,Renovering!E:G,3,0) -> Stk. | I28: =SUM(AE15:AE17) -> 0 | J28: Ikke relevant | K28: 1000 | L28: =IFERROR($AE$15/I28,0)+IFERROR($AE$16/J28,0)+IFERROR($AE$17/K28,0) -> 0 | M28: =IF(L28=0,0,IF((H28/L28)>1,1,(H28/L28))) -> 0 | N28: =IF(L28=0,0,IF((H28/L28)>1,1,(H28/L28))) -> 0 | O28: =IF(L28=0,0,IF((H28/L28)>1,1,(H28/L28))) -> 0 | P28: 0 | Q28: 0 | R28: 0 | S28: =IF(F28="Ikke Relevant","Ikke Relevant",F28*H28) -> 0 | U28: 0.05 | V28: 0.05 | W28: 0 | X28: 0 | Y28: 0
B29: X | C29: X | D29: X | E29: Ensilagesiloer – 22 m3 pr. ko og 13 m3 pr. kvie | F29: 275 | G29: =VLOOKUP(E29,Renovering!E:G,3,0) -> m3 | I29: =1/22 -> 0.04545454545 | J29: =1/3.5 -> 0.2857142857 | K29: =1/13 -> 0.07692307692 | L29: 0 | M29: 0 | N29: 0 | O29: 0 | P29: 0 | Q29: 0 | R29: 0 | S29: 0 | U29: 0.05 | V29: 0.05 | W29: 0 | X29: 0 | Y29: 0 | AD29: Ansøgningens økonomiske effekt / Ansøgningens samlede score: | AF29: =AH26/AF27 -> 
B30: X | C30: X | D30: X | E30: Gyllebeholder | F30: 140 | G30: =VLOOKUP(E30,Renovering!E:G,3,0) -> m3 | I30: =1/23 -> 0.04347826087 | J30: 0.2 | K30: 0.2 | L30: 0 | M30: 0 | N30: 0 | O30: 0 | P30: 0 | Q30: 0 | R30: 0 | S30: 0 | U30: 0 | V30: 0 | W30: 0 | X30: 0 | Y30: 0
B31: X | C31: X | D31: X | E31: Teltoverdækning af gyllebeholder | F31: 320 | G31: =VLOOKUP(E31,Renovering!E:G,3,0) -> m2 | I31: 0.2 | J31: 0.92 | K31: 0.92 | L31: 0 | M31: 0 | N31: 0 | O31: 0 | P31: 0 | Q31: 0 | R31: 0 | S31: 0 | U31: 0.05 | V31: 0.05 | W31: 0 | X31: 0 | Y31: 0
B32: X | C32: X | D32: X | E32: Luftrensning | F32: 3500 | G32: =VLOOKUP(E32,Renovering!E:G,3,0) -> Ko | I32: 1 | J32: 1.25 | K32: 1.25 | L32: 0 | M32: 0 | N32: 0 | O32: 0 | P32: 0 | Q32: 0 | R32: 0 | S32: 0 | U32: 0.02 | V32: 0.02 | W32: 0 | X32: 0 | Y32: 0
B33: X | C33: X | D33: X | E33: Gulvudsugning: | F33: 2365 | G33: =VLOOKUP(E33,Renovering!E:G,3,0) -> Ko | I33: 1 | J33: 1.25 | K33: 1.25 | L33: 0 | M33: 0 | N33: 0 | O33: 0 | P33: 0 | Q33: 0 | R33: 0 | S33: 0 | U33: 0.02 | V33: 0.02 | W33: 0 | X33: 0 | Y33: 0
B34: X | C34: X | D34: X | E34: Isolering af tag: | F34: 175 | G34: =VLOOKUP(E34,Renovering!E:G,3,0) -> m2 | I34: 0.0909 | J34: 0.11111111 | K34: 0.11111111 | L34: 0 | M34: 0 | N34: 0 | O34: 0 | P34: 0 | Q34: 0 | R34: 0 | S34: 0 | U34: 0.02 | V34: 0.02 | W34: 0 | X34: 0 | Y34: 0
B35: X | E35: Klovvasker - Returgangsanlæg | F35: 80000 | G35: =VLOOKUP(E35,Renovering!E:G,3,0) -> Stk. | I35: =AE15 -> 0 | J35: Ikke relevant | K35: Ikke relevant | L35: 0 | M35: 0 | N35: 0 | O35: 0 | P35: 0 | Q35: 0 | R35: 0 | S35: 0 | U35: 0 | V35: 0 | W35: 0 | X35: 0 | Y35: 0
B36: X | E36: Klovvasker - Montage i malkerobot | F36: 20000 | G36: =VLOOKUP(E36,Renovering!E:G,3,0) -> Stk. | I36: 75 | J36: Ikke relevant | K36: Ikke relevant | L36: 0 | M36: 0 | N36: 0 | O36: 0 | P36: 0 | Q36: 0 | R36: 0 | S36: 0 | U36: 0 | V36: 0 | W36: 0 | X36: 0 | Y36: 0
B37: X | C37: X | D37: X | E37: Vandrensning - Kapacitet under 7.500 Liter | F37: 60000 | G37: =VLOOKUP(E37,Renovering!E:G,3,0) -> Stk. | I37: 150 | J37: 600 | K37: 600 | L37: 0 | M37: 0 | N37: 0 | O37: 0 | P37: 0 | Q37: 0 | R37: 0 | S37: 0 | U37: 0.025 | V37: 0.025 | W37: 0 | X37: 0 | Y37: 0
B38: X | C38: X | D38: X | E38: Vandrensning - Kapacitet 7500-15.000 Liter | F38: 100000 | G38: =VLOOKUP(E38,Renovering!E:G,3,0) -> Stk. | I38: 300 | J38: 1200 | K38: 1200 | L38: 0 | M38: 0 | N38: 0 | O38: 0 | P38: 0 | Q38: 0 | R38: 0 | S38: 0 | U38: 0.025 | V38: 0.025 | W38: 0 | X38: 0 | Y38: 0
B39: X | C39: X | D39: X | E39: Vandrensning - Kapacitet over 15.000 Liter | F39: 180000 | G39: =VLOOKUP(E39,Renovering!E:G,3,0) -> Stk. | I39: =AE15 -> 0 | J39: =AE16 -> 0 | K39: =AE17 -> 0 | L39: 0 | M39: 0 | N39: 0 | O39: 0 | P39: 0 | Q39: 0 | R39: 0 | S39: 0 | U39: 0.025 | V39: 0.025 | W39: 0 | X39: 0 | Y39: 0
B40: X | E40: Sygdomsovervågning (30.000 i grundpris+1100 pr ko) | F40: =30000+(1100*H40) -> 30000 | G40: =VLOOKUP(E40,Renovering!E:G,3,0) -> Stk. | I40: 1 | J40: Ikke relevant | K40: Ikke relevant | L40: 0 | M40: 0 | N40: 0 | O40: 0 | P40: 0 | Q40: 0 | R40: 0 | S40: =IF(OR(H40=0,H40=""),0,F40) -> 0 | U40: 0.025 | V40: 0 | W40: 0 | X40: 0 | Y40: 0
B41: X | E41: Rengøring af gulve – Drivbom på opsamlingsplads | F41: 175000 | G41: =VLOOKUP(E41,Renovering!E:G,3,0) -> Stk. | I41: =AE15 -> 0 | J41: Ikke relevant | K41: Ikke relevant | L41: 0 | M41: 0 | N41: 0 | O41: 0 | P41: 0 | Q41: 0 | R41: 0 | S41: 0 | U41: 0.025 | V41: 0 | W41: 0 | X41: 0 | Y41: 0
E42: Samlet pris for Basis Staldanlæg | U42: =SUMIF(H27:H41,">0",U27:U41) -> 0 | V42: =SUMIF(H27:H41,">0",V27:V41) -> 0 | W42: =SUM(W27:W41) -> 0 | X42: =SUM(X27:X41) -> 0 | Y42: =SUMIF(Y27:Y41,"<>Ikke relevant",Y27:Y41) -> 0
U43: =SUMIF(T27:T41,"<0",U27:U41) -> 0
E44: Malkning og mælkeopbevaring
E45: Kategori/element | F45: Pris | G45: Enhed | H45: Angiv Stk. | S45: Total Pris | T45: Angiv lavere pris | U45: Forøgelse i produktion Køer | V45: Forøgelse i produktion ungdyr | W45: Forøget værdi Køer(Forøgelse * Værdi) | X45: Forøget værdi ungdyr(Forøgelse * Værdi) | Y45: Endelig pris til prioritering
E46: Konventionelt malkeanlæg med fast exit, hhv. 30° sildeben eller ”side by side” | F46: 75000 | G46: =VLOOKUP(E46,Renovering!E:G,3,0) -> Koplads | S46: =IF(F46="Ikke Relevant","Ikke Relevant",F46*H46) -> 0 | U46: 0 | V46: 0 | W46: 0 | X46: 0 | Y46: =IF(AND(T46<S46,T46<>0,T46<>""),T46,S46) -> 0
E47: Mælkekøling, isvandsanlæg | F47: 1100 | G47: =VLOOKUP(E47,Renovering!E:G,3,0) -> Ko | S47: =IF(F47="Ikke Relevant","Ikke Relevant",F47*H47) -> 0 | U47: 0 | V47: 0 | W47: 0 | X47: 0 | Y47: 0
E48: Mælketank inkl. bufferkapacitet på 25 % | F48: 1800 | G48: =VLOOKUP(E48,Renovering!E:G,3,0) -> Ko | S48: 0 | U48: 0 | V48: 0 | W48: 0 | X48: 0 | Y48: 0
E49: Malkekarrusel | F49: 68000 | G49: =VLOOKUP(E49,Renovering!E:G,3,0) -> Ko | S49: 0 | U49: 0 | V49: 0 | W49: 0 | X49: 0 | Y49: 0
E50: Malkerobot | F50: 1000000 | G50: =VLOOKUP(E50,Renovering!E:G,3,0) -> Stk. | S50: 0 | U50: 0 | V50: 0 | W50: 0 | X50: 0 | Y50: 0
E51: Samlet pris for Basis Staldanlæg | S51: =SUMIF(S46:S50,"<>Ikke relevant",S46:S50) -> 0 | Y51: =SUMIF(Y46:Y50,"<>Ikke relevant",Y46:Y50) -> 0
